lending/lending_fUSD_20250501
["ID","MTS","AMOUNT","RATE_DAILY","PERIOD"]
[359576822,1746137463428,-151.0,0.00036164,7]
[359576823,1746137463438,-151.0,0.00036164,7]
[359576824,1746137463448,-450.0,0.00036164,11]
[359576825,1746137463458,-450.0,0.00036164,11]
[359576826,1746137463469,-1932.82,0.00036164,11]
[359576827,1746137463479,-1153.29,0.00036164,11]
[359576828,1746137463490,-450.0,0.00036164,11]
[359576829,1746137463501,-151.0,0.00036164,7]
[359576830,1746137463512,-450.0,0.00036164,11]
[359576831,1746137463522,-450.0,0.00036164,11]
[359576832,1746137463531,-578.29,0.00036164,11]
[359576833,1746137463541,-450.0,0.00036164,11]
[359576834,1746137463551,-450.0,0.00036164,11]
[359576835,1746137463561,-450.0,0.00036164,11]
[359576836,1746137463571,-450.0,0.00036164,11]
[359576837,1746137463581,-715.1,0.00036164,11]
[359576838,1746137463591,-450.0,0.00036164,11]
[359576839,1746137463600,-450.0,0.00036164,11]
[359576840,1746137463610,-450.0,0.00036164,11]
[359576841,1746137463620,-450.0,0.00036164,11]
[359576842,1746137463630,-450.0,0.00036164,11]
[359576843,1746137463641,-151.0,0.00036164,7]
[359576844,1746137463650,-451.73,0.00036164,11]
[359576845,1746137463661,-594.23724818,0.00036164,11]
[359576846,1746137463670,-450.0,0.00036164,11]
[359576847,1746137463680,-493.94,0.00036164,11]
[359576848,1746137463690,-450.0,0.00036164,11]
[359576849,1746137463701,-650.18,0.00036164,11]
[359576850,1746137463711,-450.0,0.00036164,11]
[359576851,1746137463721,-450.0,0.00036164,11]
[359576852,1746137463732,-450.0,0.00036164,11]
[359576853,1746137463742,-613.48,0.00036164,11]
[359576854,1746137463752,-450.0,0.00036164,11]
[359576855,1746137463763,-450.0,0.00036164,11]
[359576856,1746137463774,-484.13,0.00036164,11]
[359576857,1746137463784,-450.0,0.00036164,11]
[359576858,1746137463795,-450.0,0.00036164,11]
[359576859,1746137463805,-450.0,0.00036164,11]
[359576860,1746137463815,-450.0,0.00036164,11]
[359576861,1746137463826,-450.0,0.00036164,11]
[359576862,1746137463836,-613.96,0.00036164,11]
[359576863,1746137463846,-450.0,0.00036164,11]
[359576864,1746137463856,-545.72605169,0.00036164,11]
[359576865,1746137463866,-1485.28,0.00036164,11]
[359576866,1746137463876,-450.0,0.00036164,11]
[359576867,1746137463886,-766.2,0.00036164,11]
[359576868,1746137463896,-408.34270281,0.00036164,11]
[359576869,1746137463906,-637.94,0.00036164,11]
[359576870,1746137463916,-405.55851191,0.00036164,11]
[359576871,1746137463926,-450.0,0.00036164,11]
[359576872,1746137463936,-450.0,0.00036164,11]
[359576873,1746137463946,-450.0,0.00036164,11]
[359576874,1746137463956,-575.81,0.00036164,11]
[359576875,1746137463967,-450.0,0.00036164,11]
[359576876,1746137463977,-1051.09,0.00036164,11]
[359576877,1746137463988,-450.0,0.00036164,11]
[359576878,1746137463998,-450.0,0.00036164,11]
[359576879,1746137464008,-450.0,0.00036164,11]
[359576880,1746137464019,-450.0,0.00036164,11]
[359576881,1746137464030,-450.0,0.00036164,11]
[359576882,1746137464040,-450.0,0.00036164,11]
[359576883,1746137464050,-1057.75,0.00036164,11]
[359576884,1746137464059,-450.0,0.00036164,11]
[359576885,1746137464069,-450.0,0.00036164,11]
[359576886,1746137464079,-307.246909,0.00036164,7]
[359576887,1746137464089,-450.0,0.00036164,11]
[359576888,1746137464100,-307.246909,0.00036164,7]
[359576889,1746137464110,-934.72,0.00036164,11]
[359576890,1746137464120,-373.52548777,0.00036164,11]
[359576891,1746137464130,-450.0,0.00036164,11]
[359576892,1746137464140,-450.0,0.00036164,11]
[359576893,1746137464150,-151.0,0.00036164,7]
[359576894,1746137464160,-450.0,0.00036164,11]
[359576895,1746137464170,-540.83,0.00036164,11]
[359576896,1746137464180,-202.46120137,0.00036164,11]
[359576897,1746137464190,-450.0,0.00036164,11]
[359576898,1746137464200,-151.0,0.00036164,7]
[359576899,1746137464210,-621.12,0.00036164,11]
[359576900,1746137464220,-304.83971962,0.00036164,11]
[359576901,1746137464230,-171.77954536,0.00036164,11]
[359576902,1746137464240,-1060.9,0.00036164,11]
[359576903,1746137464249,-496.63,0.00036164,11]
[359576904,1746137464261,-511.56,0.00036164,11]
[359576905,1746137464271,-281.406446,0.00036164,7]
[359576906,1746137464281,-450.0,0.00036164,11]
[359576907,1746137464291,-165.666419,0.00036164,7]
[359576908,1746137464301,-450.0,0.00036164,11]
[359576909,1746137464310,-281.406446,0.00036164,7]
[359576910,1746137464320,-165.666419,0.00036164,7]
[359576911,1746137464333,-809.04,0.00036164,11]
[359576912,1746137464343,-450.0,0.00036164,11]
[359576913,1746137464354,-450.0,0.00036164,11]
[359576914,1746137464364,-1233.93,0.00036164,11]
[359576915,1746137464374,-450.0,0.00036164,11]
[359576916,1746137464384,-450.0,0.00036164,11]
[359576917,1746137464395,-450.0,0.00036164,11]
[359576918,1746137464404,-450.0,0.00036164,11]
[359576919,1746137464414,-502.92,0.00036164,11]
[359576920,1746137464424,-450.0,0.00036164,11]
[359576921,1746137464434,-485.97,0.00036164,11]
[359576922,1746137464444,-450.0,0.00036164,11]
[359576923,1746137464455,-708.39,0.00036164,11]
[359576924,1746137464465,-450.0,0.00036164,11]
[359576925,1746137464475,-450.0,0.00036164,11]
[359576926,1746137464486,-450.0,0.00036164,11]
[359576927,1746137464497,-450.0,0.00036164,11]
[359576928,1746137464507,-450.0,0.00036164,11]
[359576929,1746137464518,-888.78,0.00036164,11]
[359576930,1746137464528,-756.54,0.00036164,11]
[359576931,1746137464538,-1491.46,0.00036164,11]
[359576932,1746137464548,-450.0,0.00036164,11]
[359576933,1746137464558,-2171.12,0.00036164,11]
[359576934,1746137464568,-450.0,0.00036164,11]
[359576935,1746137464578,-450.0,0.00036164,2]
[359576936,1746137464588,-603.85,0.00036164,11]
[359576937,1746137464598,-1306.96,0.00036164,11]
[359576938,1746137464608,-674.77,0.00036164,11]
[359576939,1746137464618,-860.69,0.00036164,11]
[359576940,1746137464628,-450.0,0.00036164,11]
[359576941,1746137464638,-450.0,0.00036164,11]
[359576942,1746137464648,-450.0,0.00036164,11]
[359576943,1746137464658,-1075.77,0.00036164,11]
[359576944,1746137464667,-450.0,0.00036164,11]
[359576945,1746137464677,-450.0,0.00036164,2]
[359576946,1746137464687,-450.0,0.00036164,11]
[359576947,1746137464697,-657.82,0.00036164,11]
[359576948,1746137464708,-1134.06,0.00036164,11]
[359576949,1746137464718,-532.8,0.00036164,11]
[359576950,1746137464729,-450.0,0.00036164,11]
[359576951,1746137464739,-373.01724408,0.00036164,11]
[359576952,1746137464949,-982.42,0.00036164,11]
[359576953,1746137464959,-2054.77,0.00036164,11]
[359576954,1746137464969,-450.0,0.00036164,11]
[359576955,1746137464978,-450.0,0.00036164,2]
[359576956,1746137464988,-469.82,0.00036164,11]
[359576957,1746137464998,-450.0,0.00036164,11]
[359576958,1746137465008,-450.0,0.00036164,11]
[359576959,1746137465017,-803.53,0.00036164,11]
[359576960,1746137465027,-450.0,0.00036164,11]
[359576961,1746137465036,-450.0,0.00036164,11]
[359576962,1746137465046,-580.73,0.00036164,11]
[359576963,1746137465055,-450.0,0.00036164,11]
[359576964,1746137465065,-1587.58,0.00036164,11]
[359576965,1746137465075,-450.0,0.00036164,11]
[359576966,1746137465086,-525.983902,0.00036164,7]
[359576967,1746137465096,-450.0,0.00036164,11]
[359576968,1746137465106,-483.06,0.00036164,11]
[359576969,1746137465116,-450.0,0.00036164,11]
[359576970,1746137465126,-1083.69,0.00036164,11]
[359576971,1746137465135,-339.25335788,0.00036164,11]
[359576972,1746137465144,-1809.19,0.00036164,11]
[359576973,1746137465153,-525.983902,0.00036164,7]
[359576974,1746137465163,-450.0,0.00036164,11]
[359576975,1746137465172,-472.73,0.00036164,11]
[359576976,1746137465182,-450.0,0.00036164,11]
[359576977,1746137465193,-450.0,0.00036164,11]
[359576978,1746137465203,-159.900955,0.00036164,7]
[359576979,1746137465212,-151.0,0.00036164,7]
[359576980,1746137465223,-450.0,0.00036164,11]
[359576981,1746137465233,-733.99,0.00036164,11]
[359576982,1746137465242,-151.0,0.00036164,7]
[359576983,1746137465252,-450.0,0.00036164,11]
[359576984,1746137465265,-450.0,0.00036164,11]
[359576985,1746137465275,-159.900955,0.00036164,7]
[359576986,1746137465284,-151.0,0.00036164,7]
[359576987,1746137465294,-450.0,0.00036164,11]
[359576988,1746137465303,-506.22,0.00036164,11]
[359576989,1746137465313,-1019.15,0.00036164,11]
[359576990,1746137465325,-450.0,0.00036164,11]
[359576991,1746137465335,-527.77,0.00036164,11]
[359576992,1746137465344,-494.31,0.00036164,11]
[359576993,1746137465353,-554.68,0.00036164,11]
[359576994,1746137465362,-450.0,0.00036164,11]
[359576995,1746137465372,-450.0,0.00036164,11]
[359576996,1746137465382,-450.0,0.00036164,11]
[359576997,1746137465392,-151.0,0.00036164,7]
[359576998,1746137465403,-565.32,0.00036164,11]
[359576999,1746137465413,-450.0,0.00036164,11]
[359577000,1746137465424,-450.0,0.00036164,11]
[359577001,1746137465434,-1257.44,0.00036164,11]
[359577002,1746137465444,-254.11,0.00036164,11]
[359577003,1746137465454,-616.47,0.00036164,11]
[359577004,1746137465463,-450.0,0.00036164,11]
[359577005,1746137465473,-1228.66,0.00036164,11]
[359577006,1746137465483,-450.0,0.00036164,11]
[359577007,1746137465492,-450.0,0.00036164,11]
[359577008,1746137465502,-450.0,0.00036164,11]
[359577009,1746137465511,-151.0,0.00036164,7]
[359577010,1746137465521,-450.0,0.00036164,11]
[359577011,1746137465531,-450.0,0.00036164,11]
[359577012,1746137465540,-450.0,0.00036164,11]
[359577013,1746137465551,-450.0,0.00036164,11]
[359577014,1746137465561,-450.0,0.00036164,11]
[359577015,1746137465570,-450.0,0.00036164,11]
[359577016,1746137465580,-171.400352,0.00036164,7]
[359577017,1746137465590,-495.72,0.00036164,11]
[359577018,1746137465600,-450.0,0.00036164,11]
[359577019,1746137465610,-450.0,0.00036164,11]
[359577020,1746137465620,-450.0,0.00036164,11]
[359577021,1746137465630,-450.0,0.00036164,11]
[359577022,1746137465639,-450.0,0.00036164,11]
[359577023,1746137465650,-450.0,0.00036164,11]
[359577024,1746137465659,-450.0,0.00036164,11]
[359577025,1746137465669,-686.46,0.00036164,11]
[359577026,1746137465679,-645.1,0.00036164,11]
[359577027,1746137465689,-450.0,0.00036164,11]
[359577028,1746137465699,-450.0,0.00036164,11]
[359577029,1746137465708,-450.0,0.00036164,11]
[359577030,1746137465717,-450.0,0.00036164,11]
[359577031,1746137465727,-450.0,0.00036164,11]
[359577032,1746137465738,-469.3,0.00036164,11]
[359577033,1746137465747,-450.0,0.00036164,11]
[359577034,1746137465758,-450.0,0.00036164,11]
[359577035,1746137465768,-450.0,0.00036164,11]
[359577036,1746137465779,-1016.8,0.00036164,11]
[359577037,1746137465788,-513.5281495,0.00036164,11]
[359577038,1746137465798,-1098.77,0.00036164,11]
[359577039,1746137465807,-450.0,0.00036164,11]
[359577040,1746137465817,-1175.04,0.00036164,11]
[359577041,1746137465826,-450.0,0.00036164,11]
[359577042,1746137465836,-450.0,0.00036164,11]
[359577043,1746137465846,-450.0,0.00036164,11]
[359577044,1746137465856,-633.53,0.00036164,11]
[359577045,1746137465865,-839.92,0.00036164,11]
[359577046,1746137465875,-450.0,0.00036164,11]
[359577047,1746137465885,-450.0,0.00036164,11]
[359577048,1746137465895,-450.0,0.00036164,11]
[359577049,1746137465906,-450.0,0.00036164,11]
[359577050,1746137465917,-806.89,0.00036164,11]
[359577051,1746137465927,-887.91,0.00036164,11]
[359577052,1746137465939,-151.0,0.00036164,7]
[359577053,1746137465948,-456.08,0.00036164,11]
[359577054,1746137465959,-781.21,0.00036164,11]
[359577055,1746137465969,-509.39,0.00036164,11]
[359577056,1746137465979,-450.0,0.00036164,11]
[359577057,1746137465988,-450.0,0.00036164,11]
[359577058,1746137465999,-902.5,0.00036164,11]
[359577059,1746137466009,-450.0,0.00036164,11]
[359577060,1746137466018,-710.22,0.00036164,11]
[359577061,1746137466028,-450.0,0.00036164,7]
[359577062,1746137466038,-2075.49,0.00036164,11]
[359577063,1746137466048,-450.0,0.00036164,11]
[359577064,1746137466058,-450.0,0.00036164,11]
[359577065,1746137466069,-450.0,0.00036164,11]
[359577066,1746137466079,-450.0,0.00036164,11]
[359577067,1746137466089,-151.0,0.00036164,7]
[359577068,1746137466099,-1150.22,0.00036164,11]
[359577069,1746137466109,-756.88,0.00036164,11]
[359577070,1746137466119,-458.85,0.00036164,11]
[359577071,1746137466128,-450.0,0.00036164,7]
[359577072,1746137466138,-450.0,0.00036164,11]
[359577073,1746137466149,-450.0,0.00036164,11]
[359577074,1746137466159,-450.0,0.00036164,11]
[359577075,1746137466171,-875.6,0.00036164,11]
[359577076,1746137466180,-519.64,0.00036164,11]
[359577077,1746137466190,-450.0,0.00036164,11]
[359577078,1746137466200,-3225.23,0.00036164,11]
[359577079,1746137466209,-888.87,0.00036164,11]
[359577080,1746137466221,-216.14609136,0.00036164,11]
[359577081,1746137466231,-463.07484629,0.00036164,11]
[359577082,1746137466241,-825.62,0.00036164,11]
[359577083,1746137466251,-203.782142,0.00036164,7]
[359577084,1746137466261,-450.0,0.00036164,11]
[359577085,1746137466271,-450.0,0.00036164,11]
[359577086,1746137466280,-450.0,0.00036164,11]
[359577087,1746137466290,-1162.27,0.00036164,11]
[359577088,1746137466300,-533.21400345,0.00036164,11]
[359577089,1746137466310,-203.782142,0.00036164,7]
[359577090,1746137466319,-809.51,0.00036164,11]
[359577091,1746137466332,-549.22,0.00036164,11]
[359577092,1746137466343,-450.0,0.00036164,11]
[359577093,1746137466352,-501.05,0.00036164,11]
[359577094,1746137466363,-602.74,0.00036164,11]
[359577095,1746137466373,-950.96,0.00036164,11]
[359577096,1746137466385,-1000.0,0.00036164,60]
[359577097,1746137466398,-306.2170194,0.00036164,11]
[359577098,1746137466411,-613.48,0.00036164,11]
[359577099,1746137466420,-658.3,0.00036164,11]
[359577100,1746137466429,-1085.3,0.00036164,11]
[359577101,1746137466439,-450.0,0.00036164,11]
[359577102,1746137466448,-596.08,0.00036164,11]
[359577103,1746137466460,-738.57,0.00036164,11]
[359577104,1746137466471,-1012.65,0.00036164,11]
[359577105,1746137466481,-692.14,0.00036164,11]
[359577106,1746137466491,-983.38,0.00036164,11]
[359577107,1746137466501,-450.0,0.00036164,11]
[359577108,1746137466511,-675.8,0.00036164,11]
[359577109,1746137466521,-450.0,0.00036164,11]
[359577110,1746137466530,-450.0,0.00036164,11]
[359577111,1746137466540,-1087.08,0.00036164,11]
[359577112,1746137466550,-450.0,0.00036164,11]
[359577113,1746137466560,-450.0,0.00036164,11]
[359577114,1746137466569,-450.0,0.00036164,11]
[359577115,1746137466578,-629.93,0.00036164,11]
[359577116,1746137466587,-450.0,0.00036164,11]
[359577117,1746137466597,-413.19819068,0.00036164,11]
[359577118,1746137466606,-450.0,0.00036164,11]
[359577119,1746137466616,-533.53,0.00036164,11]
[359577120,1746137466625,-250.89288561,0.00036164,11]
[359577121,1746137466634,-564.19,0.00036164,11]
[359577122,1746137466644,-450.0,0.00036164,11]
[359577123,1746137466655,-450.0,0.00036164,11]
[359577124,1746137466667,-450.0,0.00036164,11]
[359577125,1746137466677,-899.52,0.00036164,11]
[359577126,1746137466687,-450.0,0.00036164,11]
[359577127,1746137466696,-450.0,0.00036164,11]
[359577128,1746137466707,-450.0,0.00036164,11]
[359577129,1746137466716,-2864.99,0.00036164,11]
[359577130,1746137466726,-1328.02,0.00036164,11]
[359577131,1746137466736,-976.36,0.00036164,11]
[359577132,1746137466745,-790.6,0.00036164,11]
[359577133,1746137466755,-970.78,0.00036164,11]
[359577134,1746137466765,-450.0,0.00036164,11]
[359577135,1746137466774,-450.0,0.00036164,11]
[359577136,1746137466784,-450.0,0.00036164,11]
[359577137,1746137466795,-450.0,0.00036164,11]
[359577138,1746137466804,-1019.41,0.00036164,11]
[359577139,1746137466814,-450.0,0.00036164,11]
[359577140,1746137466823,-450.0,0.00036164,11]
[359577141,1746137466833,-598.44,0.00036164,11]
[359577142,1746137466843,-467.26,0.00036164,11]
[359577143,1746137466852,-450.0,0.00036164,11]
[359577144,1746137466863,-450.0,0.00036164,11]
[359577145,1746137466872,-446.0305227,0.00036164,11]
[359577146,1746137466882,-630.97,0.00036164,11]
[359577147,1746137466891,-473.55,0.00036164,11]
[359577148,1746137466901,-450.0,0.00036164,11]
[359577149,1746137466912,-450.0,0.00036164,11]
[359577150,1746137466922,-450.0,0.00036164,11]
[359577151,1746137466931,-848.81,0.00036164,11]
[359577152,1746137466941,-450.0,0.00036164,11]
[359577153,1746137466951,-450.0,0.00036164,11]
[359577154,1746137466960,-596.731986,0.00036164,7]
[359577155,1746137466970,-450.0,0.00036164,11]
[359577156,1746137466981,-450.0,0.00036164,10]
[359577157,1746137466992,-472.77,0.00036164,11]
[359577158,1746137467002,-450.0,0.00036164,11]
[359577159,1746137467012,-450.0,0.00036164,11]
[359577160,1746137467022,-450.0,0.00036164,11]
[359577161,1746137467032,-1202.2,0.00036164,11]
[359577162,1746137467042,-450.0,0.00036164,11]
[359577163,1746137467051,-596.731986,0.00036164,7]
[359577164,1746137467060,-1017.89,0.00036164,11]
[359577165,1746137467070,-450.0,0.00036164,11]
[359577166,1746137467080,-450.0,0.00036164,11]
[359577167,1746137467090,-450.0,0.00036164,11]
[359577168,1746137467100,-1411.61,0.00036164,11]
[359577169,1746137467110,-450.0,0.00036164,11]
[359577170,1746137467120,-644.23,0.00036164,11]
[359577171,1746137467130,-450.0,0.00036164,11]
[359577172,1746137467139,-990.87,0.00036164,11]
[359577173,1746137467149,-450.0,0.00036164,11]
[359577174,1746137467159,-561.41,0.00036164,11]
[359577175,1746137467169,-450.0,0.00036164,11]
[359577176,1746137467178,-450.0,0.00036164,11]
[359577177,1746137467188,-880.87,0.00036164,120]
[359577178,1746137467197,-450.0,0.00036164,11]
[359577179,1746137467206,-832.52,0.00036164,11]
[359577180,1746137467216,-254.69698956,0.00036164,11]
[359577181,1746137467225,-450.0,0.00036164,11]
[359577182,1746137467234,-432.11493662,0.00036164,11]
[359577183,1746137467243,-450.0,0.00036164,11]
[359577184,1746137467252,-450.0,0.00036164,11]
[359577185,1746137467264,-2166.8,0.00036164,11]
[359577186,1746137467274,-450.0,0.00036164,11]
[359577187,1746137467285,-450.0,0.00036164,11]
[359577188,1746137467364,-1460.54,0.00036164,11]
[359577189,1746137467373,-1326.45,0.00036164,11]
[359577190,1746137467383,-450.0,0.00036164,11]
[359577191,1746137467394,-450.0,0.00036164,11]
[359577192,1746137467407,-450.0,0.00036164,11]
[359577193,1746137467417,-832.15,0.00036164,11]
[359577194,1746137467426,-1111.23,0.00036164,11]
[359577195,1746137467435,-450.0,0.00036164,11]
[359577196,1746137467445,-450.0,0.00036164,11]
[359577197,1746137467454,-728.279374,0.00036164,7]
[359577198,1746137467463,-450.0,0.00036164,11]
[359577199,1746137467473,-1191.23,0.00036164,11]
[359577200,1746137467482,-450.0,0.00036164,11]
[359577201,1746137467492,-151.0,0.00036164,7]
[359577202,1746137467501,-450.0,0.00036164,11]
[359577203,1746137467511,-1132.85,0.00036164,11]
[359577204,1746137467521,-1919.28,0.00036164,11]
[359577205,1746137467531,-728.279374,0.00036164,7]
[359577206,1746137467540,-1011.23,0.00036164,11]
[359577207,1746137467550,-151.0,0.00036164,7]
[359577208,1746137467560,-450.0,0.00036164,11]
[359577209,1746137467570,-586.79,0.00036164,11]
[359577210,1746137467579,-1439.64,0.00036164,11]
[359577211,1746137467589,-715.63,0.00036164,11]
[359577212,1746137467598,-450.0,0.00036164,11]
[359577213,1746137467608,-755.14,0.00036164,11]
[359577214,1746137467618,-450.0,0.00036164,7]
[359577215,1746137467629,-450.0,0.00036164,11]
[359577216,1746137467639,-1410.47,0.00036164,11]
[359577217,1746137467649,-450.0,0.00036164,11]
[359577218,1746137467660,-159.919735,0.00036164,7]
[359577219,1746137467671,-151.0,0.00036164,7]
[359577220,1746137467682,-530.56,0.00036164,11]
[359577221,1746137467693,-504.6,0.00036164,11]
[359577222,1746137467703,-594.82,0.00036164,11]
[359577223,1746137467712,-269.97643859,0.00036164,11]
[359577224,1746137467722,-450.0,0.00036164,11]
[359577225,1746137467732,-4628.51,0.00036164,11]
[359577226,1746137467742,-253.53492,0.00036164,7]
[359577227,1746137467752,-545.29270357,0.00036164,11]
[359577228,1746137467761,-449.52010391,0.00036164,11]
[359577229,1746137467770,-450.0,0.00036164,11]
[359577230,1746137467781,-450.0,0.00036164,11]
[359577231,1746137467791,-450.0,0.00036164,11]
[359577232,1746137467800,-253.53492,0.00036164,7]
[359577233,1746137467810,-9021.74,0.00036164,11]
[359577234,1746137467819,-380.225017,0.00036164,7]
[359577235,1746137467829,-450.0,0.00036164,11]
[359577236,1746137467838,-2499.3,0.00036164,11]
[359577237,1746137467848,-450.0,0.00036164,11]
[359577238,1746137467857,-450.0,0.00036164,11]
[359577239,1746137467867,-450.0,0.00036164,11]
[359577240,1746137467876,-450.0,0.00036164,11]
[359577241,1746137467886,-450.0,0.00036164,11]
[359577242,1746137467896,-450.0,0.00036164,11]
[359577243,1746137467906,-586.64,0.00036164,11]
[359577244,1746137467916,-450.0,0.00036164,11]
[359577245,1746137467926,-664.97,0.00036164,11]
[359577246,1746137467935,-380.225017,0.00036164,7]
[359577247,1746137467945,-474.98281486,0.00036164,11]
[359577248,1746137467955,-450.0,0.00036164,11]
[359577249,1746137467965,-353.80852531,0.00036164,11]
[359577250,1746137467974,-150.24194201,0.00036164,11]
[359577251,1746137467984,-150.0,0.00036164,11]
[359577252,1746137467994,-450.0,0.00036164,11]
[359577253,1746137468004,-450.0,0.00036164,11]
[359577254,1746137468014,-524.58,0.00036164,11]
[359577255,1746137468024,-450.0,0.00036164,11]
[359577256,1746137468033,-1195.42,0.00036164,11]
[359577257,1746137468042,-450.0,0.00036164,11]
[359577258,1746137468052,-500.0,0.00036164,11]
[359577259,1746137468061,-1166.55,0.00036164,11]
[359577260,1746137468071,-450.0,0.00036164,11]
[359577261,1746137468081,-10082.18,0.00036164,11]
[359577262,1746137468090,-1575.46,0.00036164,11]
[359577263,1746137468100,-832.45,0.00036164,11]
[359577264,1746137468110,-500.0,0.00036164,11]
[359577265,1746137468119,-1072.9,0.00036164,11]
[359577266,1746137468128,-500.0,0.00036164,11]
[359577267,1746137468137,-300.0,0.00036164,11]
[359577268,1746137468147,-450.0,0.00036164,11]
[359577269,1746137468157,-824.89,0.00036164,11]
[359577270,1746137468166,-500.0,0.00036164,11]
[359577271,1746137468176,-450.0,0.00036164,11]
[359577272,1746137468186,-450.0,0.00036164,11]
[359577273,1746137468196,-672.09,0.00036164,11]
[359577274,1746137468205,-450.0,0.00036164,11]
[359577275,1746137468214,-1058.66,0.00036164,11]
[359577276,1746137468223,-9533.34,0.00036164,11]
[359577277,1746137468232,-333.69849719,0.00036164,11]
[359577278,1746137468242,-450.0,0.00036164,11]
[359577279,1746137468251,-456.26,0.00036164,11]
[359577280,1746137468262,-2040.31,0.00036164,11]
[359577281,1746137468272,-810.37,0.00036164,11]
[359577282,1746137468281,-450.0,0.00036164,11]
[359577283,1746137468291,-925.94,0.00036164,11]
[359577284,1746137468300,-504.47,0.00036164,11]
[359577285,1746137468309,-847.07,0.00036164,11]
[359577286,1746137468318,-445.89900511,0.00036164,11]
[359577287,1746137468331,-450.0,0.00036164,11]
[359577288,1746137468341,-1032.24,0.00036164,11]
[359577289,1746137468350,-450.0,0.00036164,11]
[359577290,1746137468359,-1245.35,0.00036164,11]
[359577291,1746137468369,-3589.66,0.00036164,11]
[359577292,1746137468380,-697.22,0.00036164,11]
[359577293,1746137468391,-450.0,0.00036164,11]
[359577294,1746137468401,-915.07,0.00036164,11]
[359577295,1746137468411,-477.49,0.00036164,11]
[359577296,1746137468420,-1526.42,0.00036164,11]
[359577297,1746137468430,-367.07155769,0.00036164,11]
[359577298,1746137468439,-450.0,0.00036164,11]
[359577299,1746137468448,-450.0,0.00036164,11]
[359577300,1746137468458,-450.0,0.00036164,11]
[359577301,1746137468467,-1022.36,0.00036164,11]
[359577302,1746137468477,-2749.02,0.00036164,11]
[359577303,1746137468486,-450.0,0.00036164,11]
[359577304,1746137468496,-450.0,0.00036164,11]
[359577305,1746137468506,-450.0,0.00036164,11]
[359577306,1746137468517,-1082.52,0.00036164,11]
[359577307,1746137468527,-1983.46,0.00036164,11]
[359577308,1746137468536,-450.0,0.00036164,11]
[359577309,1746137468546,-3121.38,0.00036164,11]
[359577310,1746137468555,-888.0,0.00036164,14]
[359577311,1746137468565,-459.98,0.00036164,11]
[359577312,1746137468575,-921.09,0.00036164,11]
[359577313,1746137468584,-524.97,0.00036164,11]
[359577314,1746137468594,-450.0,0.00036164,11]
[359577315,1746137468604,-722.56,0.00036164,11]
[359577316,1746137468613,-450.0,0.00036164,11]
[359577317,1746137468623,-450.0,0.00036164,11]
[359577318,1746137468633,-450.0,0.00036164,11]
[359577319,1746137468642,-1410.65,0.00036164,11]
[359577320,1746137468652,-450.0,0.00036164,11]
[359577321,1746137468661,-450.0,0.00036164,11]